fUST/lending_fUST_20241015
["ID","MTS","AMOUNT","RATE_DAILY","PERIOD"]
[340279937,1729000243908,-290.486338,0.00026064,7]
[340279938,1729000243917,-151.0,0.00026064,7]
[340279939,1729000243927,-151.0,0.00026064,7]
[340279940,1729000243937,-151.0,0.00026064,7]
[340279941,1729000243947,-151.0,0.00026064,7]
[340279942,1729000243957,-151.0,0.00026064,7]
[340279943,1729000243967,-151.0,0.00026064,7]
[340279944,1729000243977,-151.0,0.00026064,7]
[340279945,1729000243987,-151.0,0.00026064,7]
[340279946,1729000243997,-188.639559,0.00026064,7]
[340279947,1729000244008,-188.639559,0.00026064,7]
[340279948,1729000244019,-639.295551,0.00026064,7]
[340279949,1729000244030,-284.647061,0.00026064,7]
[340279950,1729000244039,-639.295551,0.00026064,7]
[340279951,1729000244049,-229.56528,0.00026064,7]
[340279952,1729000244059,-229.56528,0.00026064,7]
[340279953,1729000244069,-159.255585,0.00026064,2]
[340279954,1729000244079,-151.0,0.00026089,7]
[340279955,1729000244089,-151.0,0.00026089,7]
[340279956,1729000244099,-151.0,0.00026089,7]
[340279957,1729000244109,-151.0,0.00026089,7]
[340279958,1729000244119,-151.0,0.00026089,7]
[340279959,1729000244128,-151.0,0.00026089,7]
[340279960,1729000244138,-151.0,0.00026089,7]
[340279961,1729000244147,-151.0,0.00026089,7]
[340279962,1729000244157,-151.0,0.00026089,7]
[340279963,1729000244167,-188.639559,0.00026089,7]
[340279964,1729000244177,-188.639559,0.00026089,7]
[340279965,1729000244187,-639.295551,0.00026089,7]
[340279966,1729000244196,-639.295551,0.00026089,7]
[340279967,1729000244206,-229.56528,0.00026089,7]
[340279968,1729000244216,-229.56528,0.00026089,7]
[340279969,1729000244226,-159.255585,0.00026175,2]
[340279970,1729000244236,-5274.4559768,0.00026274,2]
[340279971,1729000244246,-159.255585,0.00026285,2]
[340279972,1729000244255,-159.255585,0.00026395,2]
[340279973,1729000244265,-166.666666,0.00026406,2]
[340279974,1729000244274,-159.255585,0.00026505,2]
[340279975,1729000244283,-371.536426,0.00026595,2]
[340279976,1729000244293,-159.255585,0.00026616,2]
[340279977,1729000244302,-232.409876,0.00026616,7]
[340279978,1729000244311,-188.639559,0.00026616,7]
[340279979,1729000244322,-188.639559,0.00026616,7]
[340279980,1729000244331,-639.295551,0.00026616,7]
[340279981,1729000244340,-639.295551,0.00026616,7]
[340279982,1729000244350,-229.56528,0.00026616,7]
[340279983,1729000244360,-229.56528,0.00026616,7]
[340279984,1729000244369,-151.0,0.00026726,7]
[340279985,1729000244379,-151.0,0.00026726,7]
[340279986,1729000244388,-151.0,0.00026726,7]
[340279987,1729000244397,-152.36215,0.00026726,7]
[340279988,1729000244406,-151.0,0.00026726,7]
[340279989,1729000244416,-238.384443,0.00026726,7]
[340279990,1729000244425,-151.0,0.00026726,7]
[340279991,1729000244434,-238.384443,0.00026726,7]
[340279992,1729000244443,-881.499398,0.00026726,7]
[340279993,1729000244453,-151.0,0.00026726,7]
[340279994,1729000244462,-881.499398,0.00026726,7]
[340279995,1729000244471,-151.0,0.00026726,7]
[340279996,1729000244480,-284.2165,0.00026726,7]
[340279997,1729000244489,-151.0,0.00026726,7]
[340279998,1729000244498,-151.0,0.00026726,7]
[340279999,1729000244507,-151.0,0.00026726,7]
[340280000,1729000244517,-151.0,0.00026726,7]
[340280001,1729000244527,-151.0,0.00026726,7]
[340280002,1729000244536,-151.0,0.00026726,7]
[340280003,1729000244545,-151.0,0.00026726,7]
[340280004,1729000244555,-255.22115,0.00026726,7]
[340280005,1729000244646,-151.0,0.00026726,7]
[340280006,1729000244657,-170.428944,0.00026726,7]
[340280007,1729000244669,-151.0,0.00026726,7]
[340280008,1729000244678,-151.0,0.00026726,7]
[340280009,1729000244687,-151.0,0.00026726,7]
[340280010,1729000244697,-151.0,0.00026726,7]
[340280011,1729000244706,-151.0,0.00026726,7]
[340280012,1729000244717,-291.411536,0.00026726,7]
[340280013,1729000244726,-151.0,0.00026726,7]
[340280014,1729000244736,-151.0,0.00026726,7]
[340280015,1729000244745,-151.0,0.00026726,7]
[340280016,1729000244756,-289.535024,0.00026726,7]
[340280017,1729000244767,-500.0,0.00026726,2]
[340280018,1729000244777,-150.0,0.00026726,2]
[340280019,1729000244787,-188.639559,0.00026726,7]
[340280020,1729000244797,-188.639559,0.00026726,7]
[340280021,1729000244807,-188.639559,0.00026726,7]
[340280022,1729000244817,-188.639559,0.00026726,7]
[340280023,1729000244826,-188.639559,0.00026726,7]
[340280024,1729000244836,-188.639563,0.00026726,7]
[340280025,1729000244847,-639.295551,0.00026726,7]
[340280026,1729000244857,-639.295551,0.00026726,7]
[340280027,1729000244869,-639.295551,0.00026726,7]
[340280028,1729000244878,-639.295551,0.00026726,7]
[340280029,1729000244888,-639.295551,0.00026726,7]
[340280030,1729000244898,-639.295555,0.00026726,7]
[340280031,1729000244907,-229.56528,0.00026726,7]
[340280032,1729000244917,-229.56528,0.00026726,7]
[340280033,1729000244926,-229.56528,0.00026726,7]
[340280034,1729000244936,-229.56528,0.00026726,7]
[340280035,1729000244946,-229.56528,0.00026726,7]
[340280036,1729000244956,-229.565274,0.00026726,7]
[340280037,1729000244966,-159.255585,0.00026726,2]
[340280038,1729000244979,-200.130487,0.00026863,2]
[340280039,1729000244988,-151.0,0.00026901,7]
[340280040,1729000244997,-151.0,0.00026901,7]
[340280041,1729000245007,-187.63870672,0.00026961,2]
[340280042,1729000245018,-508.11013608,0.00026961,2]
[340280043,1729000245031,-500.0,0.00026961,2]
[340280044,1729000245041,-151.0,0.00026962,7]
[340280045,1729000245050,-151.0,0.00026962,7]
[340280046,1729000245060,-238.384443,0.00026962,7]
[340280047,1729000245071,-238.384443,0.00026962,7]
[340280048,1729000245080,-881.499398,0.00026962,7]
[340280049,1729000245090,-881.499398,0.00026962,7]
[340280050,1729000245100,-151.0,0.00026962,7]
[340280051,1729000245110,-151.0,0.00026962,7]
[340280052,1729000245120,-151.0,0.00027001,7]
[340280053,1729000245130,-151.0,0.00027001,7]
[340280054,1729000245139,-151.0,0.00027001,7]
[340280055,1729000245149,-238.384443,0.00027001,7]
[340280056,1729000245159,-238.384443,0.00027001,7]
[340280057,1729000245171,-881.499398,0.00027001,7]
[340280058,1729000245181,-881.499398,0.00027001,7]
[340280059,1729000245191,-151.0,0.00027001,7]
[340280060,1729000245200,-151.0,0.00027001,7]
[340280061,1729000245211,-166.666666,0.00027055,2]
[340280062,1729000245222,-151.0,0.00027397,7]
[340280063,1729000245231,-151.0,0.00027397,7]
[340280064,1729000245241,-151.0,0.00027397,7]
[340280065,1729000245250,-238.384443,0.00027397,7]
[340280066,1729000245260,-238.384443,0.00027397,7]
[340280068,1729000245270,-238.384443,0.00027397,7]
[340280069,1729000245280,-238.384443,0.00027397,7]
[340280071,1729000245290,-881.499398,0.00027397,7]
[340280072,1729000245301,-881.499398,0.00027397,7]
[340280073,1729000245311,-881.499398,0.00027397,7]
[340280074,1729000245321,-881.499398,0.00027397,7]
[340280075,1729000245332,-917.54662011,0.00027397,2]
[340280076,1729000245342,-156.775567,0.00027716,7]
[340280077,1729000245353,-152.123797,0.00027716,7]
[340280078,1729000245363,-151.0,0.00027716,7]
[340280079,1729000245372,-258.649703,0.00027716,7]
[340280080,1729000245383,-258.649703,0.00027716,7]
[340280081,1729000245393,-152.941444,0.00027716,7]
[340280082,1729000245403,-151.0,0.00027716,7]
[340280083,1729000245414,-151.0,0.00027716,7]
[340280084,1729000245424,-151.0,0.00027716,7]
[340280085,1729000245435,-151.0,0.00027716,7]
[340280086,1729000245445,-151.0,0.00027716,7]
[340280087,1729000245455,-231.320698,0.00027716,7]
[340280088,1729000245465,-238.384443,0.00027716,7]
[340280089,1729000245476,-238.384443,0.00027716,7]
[340280090,1729000245485,-238.384443,0.00027716,7]
[340280091,1729000245495,-238.384443,0.00027716,7]
[340280092,1729000245505,-238.384443,0.00027716,7]
[340280093,1729000245514,-238.384443,0.00027716,7]
[340280094,1729000245525,-238.384443,0.00027716,7]
[340280095,1729000245535,-238.384443,0.00027716,7]
[340280096,1729000245544,-238.384443,0.00027716,7]
[340280097,1729000245554,-238.384444,0.00027716,7]
[340280098,1729000245563,-881.499398,0.00027716,7]
[340280099,1729000245573,-881.499398,0.00027716,7]
[340280100,1729000245583,-881.499398,0.00027716,7]
[340280101,1729000245592,-881.499398,0.00027716,7]
[340280102,1729000245610,-881.499398,0.00027716,7]
[340280104,1729000245619,-881.499398,0.00027716,7]
[340280106,1729000245629,-881.499398,0.00027716,7]
[340280108,1729000245639,-881.499398,0.00027716,7]
[340280110,1729000245649,-881.499398,0.00027716,7]
[340280112,1729000245660,-881.499403,0.00027716,7]
[340280114,1729000245669,-500.0,0.00027733,5]
[340280116,1729000245679,-151.18705113,0.000279,5]
[340280117,1729000245693,-501.3035971,0.000279,5]
[340280118,1729000245702,-500.0,0.00028096,2]
[340280119,1729000245712,-250.0,0.00028096,2]
[340280120,1729000245721,-258.649703,0.00028189,7]
[340280121,1729000245730,-258.649703,0.00028189,7]
[340280122,1729000245740,-151.0,0.00028189,7]
[340280123,1729000245749,-151.0,0.00028189,7]
[340280124,1729000245758,-500.0,0.0002822,5]
[340280125,1729000245768,-258.649703,0.00028307,7]
[340280126,1729000245778,-258.649703,0.00028307,7]
[340280127,1729000245788,-258.649703,0.00028307,7]
[340280128,1729000245797,-258.649703,0.00028307,7]
[340280129,1729000245806,-258.649703,0.00028307,7]
[340280130,1729000245815,-258.649703,0.00028307,7]
[340280131,1729000245825,-258.649703,0.00028307,7]
[340280133,1729000245833,-258.649703,0.00028307,7]
[340280134,1729000245843,-258.649703,0.00028425,7]
[340280136,1729000245852,-258.649703,0.00028425,7]
[340280138,1729000245861,-258.649703,0.00028544,7]
[340280139,1729000245870,-258.649703,0.00028544,7]
[340280140,1729000245880,-500.0,0.000287,5]
[340280141,1729000245889,-500.0,0.00028817,5]
[340280142,1729000245898,-26255.94310599,0.00028973,3]
[340280146,1729000459890,10000.0,0.00024,2]
[340280147,1729000480160,10000.0,0.00024,2]
[340280155,1729000870087,4000.0,0.00024,2]
[340280176,1729001093603,300.0,0.00023,8]
[340280180,1729001229421,170.833333,0.00023993,2]
[340280181,1729001310797,383.381323,0.00023326,2]
[340280193,1729001318451,250.0,0.00023312,2]
[340280223,1729001356522,500.0,0.000237,2]
[340280224,1729001356997,500.0,0.000237,2]
[340280225,1729001357382,500.0,0.000237,2]
[340280226,1729001357826,500.0,0.000237,2]
[340280227,1729001358227,500.0,0.000237,2]
[340280228,1729001358623,500.0,0.000237,2]
[340280229,1729001359026,500.0,0.000237,2]
[340280230,1729001359480,500.0,0.000237,2]
[340280231,1729001359881,199.01728604,0.000237,2]
[340280291,1729001432140,-2393.71913215,0.0002413,2]
[340280293,1729001432150,-367.62901933,0.0002423,2]
[340280295,1729001432161,-3385.18941236,0.0002423,2]
[340280297,1729001432171,-150.0,0.0002426,2]
[340280299,1729001432182,-254.67155136,0.00024271,2]
[340280301,1729001432194,-45.32844864,0.00024271,2]
[340280303,1729001432203,-300.0,0.00024271,2]
[340280305,1729001432213,-1079.3987415,0.00024272,2]
[340280308,1729001432223,-24900.0,0.00024272,2]
[340280309,1729001432232,-929.16906446,0.00024302,2]
[340280311,1729001432244,-3781.82132944,0.00024302,2]
[340280313,1729001432254,-1341.818317,0.00024399,2]
[340280315,1729001432264,-200.130487,0.00024404,2]
[340280316,1729001432274,-3000.0,0.00024429,2]
[340280318,1729001432283,-84.01357629,0.00024538,2]
[340280340,1729001438110,-1125.69962841,0.00024538,2]
[340280341,1729001438122,-193.75365805,0.00024556,2]
[340280342,1729001438132,-140.58979727,0.00024835,2]
[340280343,1729001438144,-21.19350273,0.00024835,2]
[340280344,1729001438154,-161.7833,0.00024907,2]
[340280345,1729001438164,-161.7833,0.00024978,2]
[340280346,1729001438173,-161.7833,0.0002505,2]
[340280347,1729001438184,-170.833333,0.00025084,2]
[340280348,1729001438194,-119.12326427,0.00025084,2]
[340280349,1729001438210,-1222.69505273,0.00025084,2]
[340280350,1729001438219,-161.7833,0.00025122,2]
[340280351,1729001438229,-174.62220377,0.00025166,2]
[340280352,1729001438238,-161.7833,0.00025194,2]
[340280353,1729001438249,-161.7833,0.00025266,2]
[340280354,1729001438258,-161.7833,0.00025338,2]
[340280355,1729001438267,-161.7833,0.0002541,2]
[340280356,1729001438277,-161.7833,0.00025482,2]
[340280357,1729001438287,-161.7833,0.00025554,2]
[340280358,1729001438297,-161.7833,0.00025625,2]
[340280359,1729001438308,-161.7833,0.00025697,2]
[340280360,1729001438317,-165.86909,0.0002573,2]
[340280361,1729001438327,-161.7833,0.00025769,2]
[340280362,1729001438338,-1341.818317,0.00025769,2]
[340280363,1729001438348,-161.7833,0.00025841,2]
[340280364,1729001438358,-161.7833,0.00025913,2]
[340280365,1729001438371,-161.7833,0.00025985,2]
[340280366,1729001438382,-161.7833,0.00026057,2]
[340280367,1729001438392,-161.7833,0.00026129,2]
[340280368,1729001438401,-170.833333,0.00026174,2]
[340280369,1729001438411,-400.0,0.00026314,2]
[340280370,1729001438421,-500.0,0.00026314,2]
[340280371,1729001438431,-150.0,0.00026314,2]
[340280372,1729001438441,-194.9055035,0.000268,2]
[340280373,1729001438593,-1305.0944965,0.000268,2]
[340280374,1729001438602,-170.833333,0.00027264,2]
[340280375,1729001438616,-151.0,0.000273,7]
[340280376,1729001438625,-151.0,0.000273,7]
[340280377,1729001438634,-151.0,0.000273,7]
[340280378,1729001438643,-151.0,0.000273,7]
[340280379,1729001438652,-153.716975,0.000273,7]
[340280380,1729001438666,-182.623614,0.000273,7]
[340280381,1729001438676,-182.623614,0.000273,7]
[340280382,1729001438686,-151.0,0.000273,7]
[340280383,1729001438696,-1500.0,0.00027397,2]
[340280384,1729001438706,-151.0,0.00027397,7]
[340280385,1729001438716,-284.713925,0.00027397,7]
[340280386,1729001438726,-283.130512,0.00027397,7]
[340280387,1729001438735,-283.130512,0.00027397,7]
[340280388,1729001438744,-151.0,0.00027397,7]
[340280389,1729001438754,-151.0,0.00027397,7]
[340280390,1729001438763,-151.0,0.00027397,7]
[340280391,1729001438772,-151.0,0.00027397,7]
[340280392,1729001438782,-162.002865,0.00027397,7]
[340280393,1729001438791,-151.688116,0.00027397,7]
[340280394,1729001438800,-188.639559,0.00027397,7]
[340280395,1729001438810,-188.639559,0.00027397,7]
[340280396,1729001438820,-151.0,0.00027397,7]
[340280397,1729001438829,-151.0,0.00027397,7]
[340280398,1729001438838,-151.0,0.00027397,7]
[340280399,1729001438847,-156.581314,0.00027397,7]
[340280400,1729001438857,-151.0,0.00027397,7]
[340280401,1729001438873,-151.0,0.00027397,7]
[340280402,1729001438987,-5274.4559767,0.00027485,2]
[340280403,1729001438996,-500.0,0.00027684,2]
[340280404,1729001439005,-250.0,0.00027684,2]
[340280405,1729001439016,-151.512266,0.00027701,7]
[340280406,1729001439025,-223.266092,0.00027701,7]
[340280407,1729001439034,-223.266092,0.00027701,7]
[340280408,1729001439044,-151.0,0.00027701,7]
[340280409,1729001439053,-151.0,0.00027701,7]
[340280410,1729001439062,-164.802714,0.00027701,7]
[340280411,1729001439071,-164.802714,0.00027701,7]
[340280412,1729001439085,-151.0,0.00027701,7]
[340280413,1729001439094,-151.0,0.00027701,7]
[340280414,1729001439103,-151.0,0.00027701,7]
[340280415,1729001439116,-290.486338,0.00027701,7]
[340280416,1729001439125,-182.623614,0.00027701,7]
[340280417,1729001439134,-182.623614,0.00027701,7]
[340280418,1729001439143,-151.0,0.00027701,7]
[340280419,1729001439152,-639.92431871,0.00027767,5]
[340280420,1729001439161,-500.0,0.00027767,5]
[340280421,1729001439170,-151.0,0.00027767,7]
[340280422,1729001439179,-151.0,0.00027767,7]
[340280423,1729001439188,-188.639559,0.00027767,7]
[340280424,1729001439199,-188.639559,0.00027767,7]
[340280425,1729001439207,-151.0,0.00027767,7]
[340280426,1729001439217,-151.0,0.00027767,7]
[340280427,1729001439227,-151.0,0.00027767,7]
[340280428,1729001439236,-185.902971,0.00027767,7]
[340280429,1729001439246,-151.0,0.000278,7]
[340280430,1729001439255,-151.0,0.000278,7]
[340280431,1729001439264,-151.0,0.000278,7]
[340280432,1729001439273,-157.175027,0.000278,7]
[340280433,1729001439282,-151.0,0.000278,7]
[340280434,1729001439292,-153.405192,0.000278,7]
[340280435,1729001439301,-151.0,0.000278,7]
[340280436,1729001439310,-283.130512,0.000278,7]
[340280437,1729001439320,-283.130512,0.000278,7]
[340280438,1729001439330,-151.0,0.000278,7]
[340280439,1729001439342,-151.0,0.000278,7]
[340280440,1729001439352,-5274.4559768,0.00027866,2]
[340280441,1729001439365,-151.0,0.00027904,7]
[340280442,1729001439375,-151.0,0.00027904,7]
[340280443,1729001439384,-151.0,0.00027904,7]
[340280444,1729001439393,-182.623614,0.00027904,7]
[340280446,1729001439403,-182.623614,0.00027904,7]
[340280447,1729001439413,-151.0,0.00027904,7]
[340280448,1729001439422,-151.0,0.00027904,7]
[340280449,1729001439434,-151.0,0.00027904,7]
[340280450,1729001439443,-188.639559,0.00027904,7]
[340280452,1729001439453,-188.639559,0.00027904,7]
[340280454,1729001439462,-151.0,0.00027904,7]
[340280456,1729001439471,-151.0,0.00027904,7]
[340280458,1729001439481,-151.0,0.00027904,7]
[340280459,1729001439491,-320.58258999,0.00028066,2]
[340280859,1729001446202,-152.123797,0.00027397,7]
[340280861,1729001446212,-144.45664585,0.00028066,2]
[340280863,1729001446221,-172.58185452,0.00028175,5]
[340280865,1729001446231,-500.0,0.00028433,5]
[340280867,1729001446241,-151.0,0.000285,7]
[340280869,1729001446250,-283.130512,0.000285,7]
[340280871,1729001446260,-283.130512,0.000285,7]
[340280873,1729001446269,-151.0,0.000285,7]
[340280875,1729001446278,-151.0,0.000285,7]
[340280877,1729001446288,-800.0,0.0002893,3]
[340280879,1729001446298,-302.96970909,0.00029,2]
[340280881,1729001446308,-3752.81843169,0.00029026,2]
[340280883,1729001446317,-500.0,0.00029054,2]
[340280885,1729001446327,-500.0,0.00029124,2]
[340280887,1729001446340,-500.0,0.00029124,2]
[340280889,1729001446350,-500.0,0.00029124,2]
[340280891,1729001446359,-500.0,0.00029124,2]
[340280892,1729001446371,-500.0,0.00029124,2]
[340280894,1729001446382,-500.0,0.00029124,2]
[340280896,1729001446391,-500.0,0.00029124,2]
[340280898,1729001446400,-500.0,0.00029124,2]
[340280899,1729001446410,-500.0,0.00029124,2]
[340280901,1729001446420,-500.0,0.00029124,2]
[340280903,1729001446431,-264.97251683,0.00029124,2]
[340280906,1729001446440,-500.0,0.00029124,2]
[340280909,1729001446450,-500.0,0.00029124,2]
[340280912,1729001446460,-160.68839089,0.00029124,2]
[340280914,1729001446472,-175.77563221,0.00029124,2]
[340280916,1729001446482,-500.0,0.00029124,2]
[340280917,1729001446491,-273.60041681,0.00029124,2]
[340280919,1729001446503,-226.39958319,0.00029124,2]
[340280921,1729001446512,-500.0,0.00029124,2]
[340280923,1729001446521,-500.0,0.00029124,2]
[340280925,1729001446531,-250.0,0.00029124,2]
[340280926,1729001446540,-465.76788759,0.00029124,2]
[340280928,1729001446550,-500.0,0.00029124,2]
[340280930,1729001446559,-309.59350342,0.00029124,2]
[340281315,1729001450599,-150.90052196,0.00028095,2]
[340281316,1729001450609,-6906.78381393,0.00028095,2]
[340281317,1729001450618,-184.1374839,0.0002818,2]
[340281318,1729001450631,-190.40649658,0.00029124,2]
[340281319,1729001450641,-500.0,0.00029124,2]
[340281320,1729001450652,-258.49502067,0.00029124,2]
[340281321,1729001450662,-502.0785423,0.00029125,5]
[340281322,1729001450671,-500.0,0.00029125,5]
[340281323,1729001450680,-151.0,0.00029125,7]
[340281324,1729001450690,-151.0,0.00029125,7]
[340281325,1729001450699,-151.0,0.00029125,7]
[340281326,1729001450709,-151.0,0.00029125,7]
[340281329,1729001450726,-151.0,0.00029125,7]
[340281330,1729001450740,-151.0,0.00029125,7]
[340281331,1729001450751,-152.36215,0.00029125,7]
[340281332,1729001450761,-889.049398,0.00029125,7]
[340281333,1729001450770,-889.049398,0.00029125,7]
[340281334,1729001450780,-151.0,0.00029125,7]
[340281335,1729001450789,-151.0,0.00029125,7]
[340281336,1729001450798,-151.0,0.00029125,7]
[340281337,1729001450808,-151.0,0.00029125,7]
[340281338,1729001450818,-182.623614,0.00029125,7]
[340281339,1729001450827,-182.623614,0.00029125,7]
[340281340,1729001450836,-151.0,0.00029125,7]
[340281342,1729001450846,-151.0,0.00029125,7]
[340281344,1729001450857,-162.693288,0.00029125,7]
[340281346,1729001450867,-188.639559,0.00029125,7]
[340281348,1729001450880,-188.639559,0.00029125,7]
[340281350,1729001450890,-245.337956,0.00029125,7]
[340281352,1729001450901,-151.0,0.00029125,7]
[340281355,1729001450911,-151.0,0.00029125,7]
[340281357,1729001450920,-436.76077567,0.00029137,5]
[340281359,1729001450931,-302.96970909,0.0002929,2]
[340281361,1729001450943,-165.0,0.000293,20]
[340281363,1729001450955,-283.702577,0.000293,7]
[340281365,1729001450966,-152.285028,0.000293,7]
[340281367,1729001450977,-500.0,0.00029329,2]
[340281369,1729001450987,-500.0,0.00029329,5]
[340281371,1729001450997,-500.79777823,0.00029329,5]
[340281373,1729001451008,-500.0,0.00029329,5]
[340281375,1729001451018,-500.0,0.00029329,5]
[340281377,1729001451029,-500.0,0.0002933,5]
[340281379,1729001451039,-500.0,0.0002933,5]
[340281381,1729001451050,-151.0,0.00029332,7]
[340281383,1729001451060,-151.0,0.00029332,7]
[340281385,1729001451070,-188.639559,0.00029332,7]
[340281388,1729001451082,-188.639559,0.00029332,7]
[340281390,1729001451092,-188.639559,0.00029332,7]
[340281392,1729001451102,-130.911791,0.00029332,7]
[340281738,1729001878812,2846.2339632,0.0001,10]
[340281835,1729002638393,-170.833332,0.00024113,2]
[340281836,1729002638402,-250.0,0.00024417,2]
[340281837,1729002638412,-150.0,0.00024433,2]
[340281838,1729002638422,-250.0,0.00024481,2]
[340281839,1729002638431,-250.0,0.00024484,2]
[340281840,1729002638441,-250.0,0.00024551,2]
[340281841,1729002638450,-439.694242,0.00024572,2]
[340281842,1729002638460,-250.0,0.00024618,2]
[340281843,1729002638469,-1844.70712083,0.00024677,2]
[340281844,1729002638580,-14.26586594,0.00024677,2]
[340281864,1729002640249,-999.20856156,0.00024002,2]
[340281932,1729002646204,-496.89129344,0.00024002,2]
[340281933,1729002646214,-1148.65163033,0.00024677,2]
[340281934,1729002646223,-250.0,0.00024685,2]
[340281935,1729002646234,-1496.099855,0.00024686,2]
[340281936,1729002646243,-250.0,0.00024752,2]
[340281937,1729002646253,-250.0,0.00024818,2]
[340281938,1729002646262,-250.0,0.00024885,2]
[340281939,1729002646272,-250.0,0.00024952,2]
[340281940,1729002646281,-250.0,0.00025019,2]
[340281941,1729002646290,-250.0,0.00025086,2]
[340281942,1729002646300,-250.0,0.00025153,2]
[340281943,1729002646309,-250.0,0.0002522,2]
[340281944,1729002646318,-189.274449,0.00025239,2]
[340281945,1729002646327,-250.0,0.00025287,2]
[340281946,1729002646336,-250.0,0.00025354,2]
[340281947,1729002646346,-1496.099855,0.00025371,2]
[340281948,1729002646356,-250.0,0.00025421,2]
[340281949,1729002646365,-250.0,0.00025488,2]
[340281950,1729002646374,-300.0,0.00025552,2]
[340281951,1729002646383,-300.0,0.00025552,2]
[340281952,1729002646393,-1183.34022725,0.00025552,2]
[340281953,1729002646402,-3540.64268998,0.00025553,2]
[340281954,1729002646414,-6413.3482661,0.00025553,2]
[340281968,1729003103620,250.0,0.00023789,2]
[340281969,1729003134192,250.0,0.00023989,2]
[340281970,1729003156316,231.7446937,0.00023522,2]
[340281971,1729003182784,219.847121,0.00023522,2]
[340281972,1729003282008,164.392498,0.00023256,2]
[340281973,1729003302078,191.0407997,0.00023836,2]
[340281974,1729003338048,19969.0487743,0.00023,14]
[340281975,1729003348004,4710.9903939,0.00023533,2]
[340281976,1729003408215,24900.0,0.0002353,2]
[340281977,1729003454949,167.499999,0.00023251,2]
[340281979,1729003483074,3000.0,0.0002363,2]
[340281981,1729003610506,757.8290445,0.00023857,2]
[340281982,1729003703172,782.18713114,0.00027,60]
[340281991,1729003796935,606.8,0.00027,60]
[340282070,1729003832488,-219.8471215,0.0002403,2]
[340282073,1729003832503,-167.499999,0.00024043,2]
[340282075,1729003832518,-942.54887076,0.00024505,2]
[340282077,1729003832534,-660.0,0.00024658,2]
[340282078,1729003832549,-250.0,0.00024722,2]
[340282079,1729003832564,-250.0,0.0002479,2]
[340282080,1729003832578,-167.499999,0.00024836,2]
[340282081,1729003832597,-250.0,0.00024858,2]
[340282082,1729003832611,-1500.000001,0.00024887,2]
[340282083,1729003832626,-250.0,0.00024925,2]
[340282084,1729003832639,-250.0,0.00024993,2]
[340282085,1729003832650,-300.0,0.00024999,2]
[340282086,1729003832664,-300.0,0.00024999,2]
[340282087,1729003832679,-5000.0,0.00025,2]
[340282088,1729003832694,-1030.25052621,0.00025,2]
[340282089,1729003832710,-16996.41856212,0.00025,2]
[340282090,1729003832725,-250.0,0.00025061,2]
[340282091,1729003832737,-868.52614921,0.00025129,2]
[340282092,1729003832748,-250.0,0.00025129,2]
[340282093,1729003832759,-250.0,0.00025197,2]
[340282094,1729003832773,-250.0,0.00025264,2]
[340282095,1729003832787,-250.0,0.00025332,2]
[340282096,1729003832798,-250.0,0.000254,2]
[340282097,1729003832812,-250.0,0.00025468,2]
[340282098,1729003832824,-250.0,0.00025536,2]